bitfinex-derivatives/quotes_SOLF0:USTF0_20250820
["timestamp","ask_amount","ask_price","bid_price","bid_amount"]
[1755663252209,0.04077879,180.84,180.77,7.97606451]
[1755663252413,0.04077879,180.84,180.78,2.99]
[1755663258015,0.04077879,180.84,180.81,2.99]
[1755663258513,0.04077879,180.84,180.8,7.97496451]
[1755663258816,0.04077879,180.84,180.81,5.5308]
[1755663259017,0.04077879,180.84,180.81,2.99]
[1755663259417,0.04077879,180.84,180.83,2.99]
[1755663260512,0.04077879,180.84,180.8,7.97506451]
[1755663260708,0.04077879,180.84,180.82,2.99]
[1755663261306,0.04077879,180.84,180.83,2.99]
[1755663262018,0.04077879,180.84,180.8,7.97506451]
[1755663262221,0.04077879,180.84,180.81,2.99]
[1755663262418,0.04077879,180.84,180.8,7.97506451]
[1755663262616,0.04077879,180.84,180.83,2.99]
[1755663266225,0.04077879,180.84,180.82,2.99]
[1755663266422,0.04077879,180.84,180.83,2.99]
[1755663273734,3.02,180.92,180.84,2.84]
[1755663274034,371.42,180.93,180.87,2.84]
[1755663274225,3.02,180.93,180.89,5.28406451]
[1755663275132,3.06087894,180.93,180.89,5.28406451]
[1755663275334,3.02,180.92,180.89,5.28406451]
[1755663276232,3.02,180.92,180.89,7.97236451]
[1755663276437,0.04087894,180.93,180.9,2.84]
[1755663276733,0.04087894,180.93,180.91,2.84]
[1755663278340,0.04087894,180.93,180.92,2.84]
[1755663282635,137.22,180.96,180.92,5.28406451]
[1755663282840,137.22,180.96,180.93,2.84]
[1755663283439,140.24,180.96,180.93,2.84]
[1755663284037,3.02,180.95,180.92,2.44406451]
[1755663284240,3.02,180.95,180.92,5.28406451]
[1755663284841,137.22,180.96,180.92,5.28406451]
[1755663285035,3.02,180.94,180.92,5.28406451]
[1755663286142,3.02,180.95,180.92,5.28406451]
[1755663291746,137.22,180.96,180.91,0.03550219]
[1755663292047,3.02,180.94,180.91,2.87550219]
[1755663293951,137.22,180.96,180.91,0.03550219]
[1755663294149,3.02,180.95,180.92,2.84]
[1755663295849,3.02,180.94,180.92,2.84]
[1755663296748,3.02,180.94,180.91,2.87550219]
[1755663298954,137.22,180.96,180.91,0.03550219]
[1755663299252,2.96,180.95,180.91,0.03550219]
[1755663305360,3.00406451,180.95,180.91,0.03550219]
[1755663305660,2.96,180.94,180.91,0.03550219]
[1755663305856,3.52,180.94,180.84,3.03]
[1755663306064,2.96,180.94,180.84,3.03]
[1755663306360,2.96,180.91,180.81,3.03]
[1755663307364,0.0356603,180.88,180.81,3.03]
[1755663307563,2.96,180.87,180.81,3.03]
[1755663308562,2.96,180.87,180.77,3.03]
[1755663309261,0.03840061,180.84,180.77,3.03]
[1755663310256,0.03840061,180.84,180.77,8.5619]
[1755663310457,0.03840061,180.84,180.78,3.03]
[1755663310764,0.03840061,180.84,180.78,8.5617]
[1755663311071,0.03840061,180.84,180.79,3.03]
[1755663313470,2.99840061,180.84,180.77,5.5319]
[1755663313675,0.03840061,180.84,180.83,3.03]
[1755663317677,136.92,180.88,180.83,3.03]
[1755663318580,139.88,180.88,180.82,8.01515867]
[1755663318776,139.88,180.88,180.85,3.03]
[1755663320182,136.92,180.88,180.83,3.03]
[1755663320479,136.92,180.88,180.86,3.03]
[1755663320682,136.92,180.88,180.87,3.03]
[1755663323181,2.96,180.94,180.87,3.03]
[1755663323381,2.96,180.94,180.86,0.04109148]
[1755663323382,136.9,180.92,180.86,0.04109148]
[1755663323579,139.86,180.92,180.86,11.00306451]
[1755663323976,139.86,180.92,180.88,3.03]
[1755663324181,139.86,180.92,180.89,3.03]
[1755663325186,139.86,180.92,180.87,5.56739401]
[1755663325487,136.9,180.92,180.87,0.03849401]
[1755663325683,136.9,180.92,180.91,3.03]
[1755663326882,136.9,180.92,180.9,3.03]
[1755663327488,136.9,180.92,180.89,2.44406451]
[1755663327693,139.86,180.92,180.89,5.47406451]
[1755663327893,136.9,180.92,180.9,3.03]
[1755663328898,139.79,180.92,180.9,3.03]
[1755663329584,139.79,180.92,180.89,2.44406451]
[1755663330489,139.79,180.92,180.89,5.54406451]
[1755663334690,139.79,180.92,180.89,2.44406451]
[1755663334886,136.9,180.92,180.9,3.1]
[1755663335095,136.9,180.92,180.91,3.1]
[1755663335286,136.78,180.94,180.9,3.1]
[1755663335495,136.78,180.94,180.87,0.03849401]
[1755663335799,2.89,180.93,180.9,3.1]
[1755663337298,139.67,180.93,180.9,3.1]
[1755663337503,2.89,180.92,180.89,0.040411]
[1755663337802,136.78,180.93,180.89,0.040411]
[1755663337989,136.76,180.92,180.89,0.040411]
[1755663338299,2.89,180.91,180.89,0.040411]
[1755663338500,136.76,180.92,180.9,3.1]
[1755663338798,136.76,180.92,180.91,3.1]
[1755663340498,136.76,180.92,180.89,0.040411]
[1755663340704,136.76,180.92,180.9,3.1]
[1755663341493,136.76,180.92,180.91,3.1]
[1755663343194,136.74,180.95,180.9,2.44406451]
[1755663343394,136.74,180.95,180.93,3.1]
[1755663346702,139.63,180.95,180.92,3.1]
[1755663346901,139.63,180.95,180.93,3.1]
[1755663347404,139.63,180.95,180.9,7.97196451]
[1755663347607,139.63,180.95,180.92,3.1]
[1755663347801,2.89,180.94,180.9,2.44406451]
[1755663348001,2.89,180.94,180.9,5.54406451]
[1755663348201,136.74,180.95,180.9,5.54406451]
[1755663348202,2.89,180.92,180.9,5.54406451]
[1755663349304,2.89,180.94,180.9,5.54406451]
[1755663349607,2.89,180.93,180.9,5.54406451]
[1755663352712,136.74,180.95,180.89,0.040411]
[1755663352908,2.89,180.94,180.89,0.040411]
[1755663353202,2.89,180.92,180.89,0.040411]
[1755663353401,2.89,180.93,180.89,3.140411]
[1755663353606,2.89,180.92,180.89,3.140411]
[1755663354606,139.63,180.95,180.89,3.140411]
[1755663357611,2.89,180.94,180.89,3.140411]
[1755663357806,136.74,180.95,180.89,3.140411]
[1755663358205,2.89,180.92,180.89,3.140411]
[1755663360010,3.0,180.92,180.89,3.140411]
[1755663360713,3.0,180.94,180.89,3.140411]
[1755663361313,136.74,180.95,180.91,2.83]
[1755663361510,136.74,180.95,180.92,2.83]
[1755663361715,136.74,180.95,180.94,2.83]
[1755663363208,3.0,180.94,180.93,0.04183665]
[1755663364509,136.74,180.95,180.93,0.04183665]
[1755663364716,139.74,180.95,180.93,0.04183665]
[1755663365313,139.74,180.95,180.93,2.87183665]
[1755663366109,136.74,180.95,180.93,2.87183665]
[1755663366413,3.0,180.94,180.93,0.04183665]
[1755663383443,136.5,181.0,180.93,2.87183665]
[1755663383741,3.0,180.95,180.93,2.87183665]
[1755663386444,136.5,181.0,180.93,0.04183665]
[1755663386744,3.0,180.99,180.93,0.04183665]
[1755663390447,4.56385227,180.99,180.93,0.04183665]
[1755663390752,3.05,180.96,180.93,0.04183665]
[1755663393956,1.56385227,180.97,180.93,0.04183665]
[1755663394254,3.05,180.94,180.93,0.04183665]
[1755663394457,139.43,180.94,180.93,0.04183665]
[1755663394646,3.05,180.94,180.93,0.04183665]
[1755663394853,139.43,180.94,180.93,0.04183665]
[1755663395453,136.38,180.94,180.93,3.02183665]
[1755663395651,3.05,180.97,180.93,3.02183665]
[1755663395959,139.41,180.97,180.95,2.98]
[1755663396549,136.36,180.97,180.95,2.98]
[1755663396753,3.05,180.99,180.96,2.98]
[1755663396951,136.36,180.98,180.96,2.98]
[1755663398460,139.41,180.98,180.96,2.98]
[1755663399855,136.36,180.98,180.96,2.98]
[1755663400052,371.4,181.03,180.97,2.98]
[1755663400258,136.34,181.02,180.97,2.98]
[1755663400454,139.39,181.02,180.99,2.98]
[1755663400857,3.05,181.01,180.99,2.98]
[1755663401357,3.05,181.01,180.99,3.02196041]
[1755663402453,3.05,181.01,180.99,0.04196041]
[1755663402652,3.05,181.01,180.99,3.02196041]
[1755663408764,3.05,181.0,180.99,0.04196041]
[1755663409551,136.34,181.02,180.99,0.04196041]
[1755663409751,139.39,181.02,180.99,3.02196041]
[1755663409955,139.39,181.02,181.0,2.98]
[1755663411562,136.34,181.02,180.99,0.04196041]
[1755663411761,136.34,181.02,181.01,2.98]
[1755663413356,139.39,181.02,180.99,3.02196041]
[1755663415165,136.34,181.02,180.99,0.04196041]
[1755663415363,136.34,181.02,181.01,2.98]
[1755663423368,139.17,181.02,181.0,1.56256577]
[1755663423569,139.17,181.02,181.0,4.68256577]
[1755663423767,2.83,181.01,181.0,1.56256577]
[1755663424370,136.34,181.02,181.0,4.68256577]
[1755663426869,136.34,181.02,181.01,3.12]
[1755663427170,136.34,181.02,181.0,1.56256577]
[1755663427373,139.17,181.02,181.0,4.68256577]
[1755663427669,2.83,181.01,180.99,0.04196041]
[1755663427867,2.83,181.01,181.0,3.12]
[1755663428171,136.34,181.02,181.0,3.12]
[1755663428373,139.17,181.02,181.0,3.12]
[1755663428669,139.17,181.02,180.99,4.72452618]
[1755663429272,139.17,181.02,181.0,3.12]
[1755663430362,2.83,181.01,180.99,1.60452618]
[1755663430567,2.83,181.01,180.99,4.72452618]
[1755663431675,136.34,181.02,181.0,3.12]
[1755663431863,139.17,181.02,181.0,3.12]
[1755663432067,136.34,181.02,181.0,3.12]
[1755663432373,136.34,181.02,181.01,3.12]
[1755663432977,139.17,181.02,180.99,4.72452618]
[1755663433373,139.17,181.02,181.0,3.12]
[1755663437371,371.3,181.11,181.01,1.56256577]
[1755663437569,371.3,181.11,180.99,0.04196041]
[1755663437570,1.56256577,181.06,180.99,0.04196041]
[1755663437771,2.83,181.05,180.98,1.56256577]
[1755663438174,136.04,181.04,181.01,0.03621498]
[1755663438373,2.83,181.03,181.01,0.03621498]
[1755663439073,136.04,181.04,181.01,0.03621498]
[1755663439274,136.04,181.04,181.02,1.56256577]
[1755663439479,2.83,181.08,181.04,3.12]
[1755663439778,2.83,181.08,181.05,3.12]
[1755663439979,2.83,181.08,181.06,3.12]
[1755663440276,136.02,181.09,181.06,3.12]
[1755663440481,138.85,181.09,181.06,3.12]
[1755663441175,138.85,181.09,181.06,4.68256577]
[1755663441677,136.02,181.09,181.06,1.56256577]
[1755663441979,136.02,181.09,181.08,3.12]
[1755663443074,136.02,181.09,181.06,1.56256577]
[1755663443378,136.02,181.09,181.04,4.7227659]
[1755663443578,136.02,181.09,181.05,3.12]
[1755663443776,2.83,181.08,181.05,3.12]
[1755663444173,2.83,181.08,181.04,4.7227659]
[1755663444375,2.83,181.07,181.04,4.7227659]
[1755663444582,136.02,181.09,181.04,1.6027659]
[1755663444776,136.02,181.09,181.07,3.12]
[1755663444969,138.85,181.09,181.06,1.56256577]
[1755663445176,138.85,181.09,181.06,4.68256577]
[1755663451681,136.02,181.09,181.06,3.12]
[1755663451986,2.98,181.08,181.06,3.12]
[1755663455385,2.98,181.08,181.05,3.04]
[1755663455583,2.98,181.08,181.06,1.56256577]
[1755663455784,2.98,181.07,181.06,1.56256577]
[1755663456181,136.02,181.09,181.04,0.04020013]
[1755663456480,2.98,181.08,181.06,3.04]
[1755663458083,2.98,181.08,181.05,1.56256577]
[1755663458483,2.98,181.07,181.05,1.56256577]
[1755663458886,135.86,181.06,181.05,1.56256577]
[1755663460985,135.86,181.06,181.05,4.60256577]
[1755663463191,2.98,181.1,181.06,3.04]
[1755663463391,2.98,181.09,181.07,1.56256577]
[1755663463585,135.84,181.08,181.07,4.60256577]
[1755663464693,135.84,181.08,181.04,3.08020013]
[1755663464889,135.84,181.08,181.06,4.60256577]
[1755663467896,135.84,181.08,181.07,3.04]
[1755663469693,371.3,181.11,181.07,3.04]
[1755663469995,138.76,181.1,181.07,3.04]
[1755663470185,138.76,181.1,181.09,1.56256577]
[1755663470892,2.98,181.09,181.08,1.59825528]
[1755663471292,2.98,181.09,181.08,1.56256577]
[1755663472492,135.78,181.1,181.08,1.56256577]
[1755663472695,138.76,181.1,181.08,1.56256577]
[1755663472894,138.76,181.1,181.08,4.60256577]
[1755663473687,138.76,181.1,181.08,3.04]
[1755663474888,135.78,181.1,181.09,4.60256577]
[1755663477398,135.78,181.1,181.09,3.04]
[1755663477599,135.78,181.1,181.09,4.60256577]
[1755663480095,135.78,181.1,181.09,1.56256577]
[1755663480296,135.78,181.1,181.09,4.46256577]
[1755663480497,135.78,181.1,181.09,1.56256577]
[1755663480697,135.78,181.1,181.09,4.46256577]
[1755663481590,135.78,181.1,181.09,1.56256577]
[1755663481799,138.78,181.1,181.09,1.56256577]
[1755663483799,138.78,181.1,181.07,1.59951601]
[1755663483997,3.0,181.09,181.07,1.59951601]
[1755663484504,3.0,181.08,181.07,0.03695024]
[1755663484696,135.78,181.1,181.07,0.03695024]
[1755663484898,3.0,181.09,181.07,0.03695024]
[1755663485098,3.0,181.08,181.07,0.03695024]
[1755663487196,1.56256577,181.08,181.0,1.56256577]
[1755663487506,3.0,181.07,181.0,1.56256577]
[1755663488007,3.0,181.07,180.98,9.03576389]
[1755663488008,3.0,181.05,180.98,10.59832966]
[1755663488208,135.68,181.04,180.98,10.59832966]
[1755663488502,3.0,181.02,180.98,2.9]
[1755663488901,3.0,181.02,180.99,2.9]
[1755663489602,135.68,181.04,180.99,2.9]
[1755663489798,3.0,181.01,180.99,2.9]
[1755663490403,3.0,181.01,180.97,2.9]
[1755663490605,3.0,181.01,180.98,2.9]
[1755663490807,3.0,181.03,180.96,9.03576389]
[1755663491006,3.0,181.03,180.96,2.9]
[1755663492005,135.68,181.04,180.97,2.9]
[1755663492404,135.68,181.04,180.99,2.9]
[1755663492600,135.68,181.04,180.99,5.34193912]
[1755663492802,3.0,181.06,180.99,2.44193912]
[1755663493012,3.0,181.05,180.99,2.44193912]
[1755663493212,3.0,181.05,181.02,2.9]
[1755663493911,3.0,181.05,180.99,2.44193912]
[1755663494211,3.0,181.05,181.03,2.9]
[1755663494513,135.68,181.08,181.03,2.9]
[1755663494708,3.0,181.07,181.04,2.9]
[1755663495610,3.0,181.06,181.04,2.9]
[1755663496912,3.0,181.06,181.0,5.525]
[1755663497111,3.0,181.06,181.02,2.9]
[1755663497309,3.0,181.06,181.03,2.9]
[1755663497613,135.68,181.08,181.02,2.44193912]
[1755663497807,135.68,181.08,181.03,2.9]
[1755663498206,135.68,181.08,181.06,2.9]
[1755663498413,135.68,181.08,181.07,2.9]
[1755663498913,3.0,181.13,181.07,2.9]
[1755663499410,3.0,181.13,181.05,5.34193912]
[1755663499805,3.0,181.13,181.05,10.86533912]
[1755663500315,3.0,181.13,181.06,2.9]
[1755663500716,3.0,181.13,181.06,8.4231]
[1755663500908,3.0,181.13,181.07,2.9]
[1755663502218,3.0,181.13,181.07,8.4228]
[1755663503118,3.0,181.13,181.07,2.9]
[1755663507217,3.0,181.13,181.05,2.44193912]
[1755663507421,3.0,181.13,181.03,2.9]
[1755663508412,3.0,181.13,181.04,2.96]
[1755663508814,3.0,181.13,181.04,8.4838]
[1755663510924,3.0,181.13,181.05,2.96]
[1755663522526,2.9,181.12,181.1,2.96]
[1755663522732,2.9,181.13,181.09,1.56103587]
[1755663522930,135.66,181.14,181.09,1.56103587]
[1755663523132,2.9,181.12,181.09,4.52103587]
[1755663524339,2.9,181.12,181.09,2.96]
[1755663525440,135.66,181.14,181.05,7.96273111]
[1755663525638,135.66,181.14,181.06,5.5232]
[1755663525842,2.9,181.12,181.09,2.96]
[1755663526038,135.66,181.14,181.07,2.96]
[1755663526240,135.66,181.14,181.08,2.96]
[1755663527341,135.66,181.14,181.08,5.39923111]
[1755663527542,135.66,181.14,181.1,2.96]
[1755663527841,138.56,181.14,181.11,2.96]
[1755663528145,135.66,181.14,181.04,6.13576389]
[1755663528338,2.9,181.13,181.07,2.43923111]
[1755663528543,2.9,181.13,181.1,2.96]
[1755663529543,2.9,181.13,181.07,7.96213111]
[1755663529844,138.56,181.14,181.07,2.43923111]
[1755663530043,135.66,181.14,181.08,2.96]
[1755663532044,135.66,181.14,181.07,2.43923111]
[1755663532248,2.9,181.13,181.07,2.43923111]
[1755663532450,2.9,181.13,181.07,5.39923111]
[1755663533649,2.9,181.13,181.09,2.96]
[1755663534046,2.9,181.13,181.07,2.43923111]
[1755663534243,2.9,181.13,181.1,2.96]
[1755663535253,2.9,181.13,181.11,2.96]
[1755663535854,135.66,181.14,181.08,2.96]
[1755663537758,138.56,181.14,181.08,2.96]
[1755663539157,135.66,181.14,181.08,2.96]
[1755663539355,3.13,181.12,181.07,2.43923111]
[1755663539557,3.13,181.12,181.09,3.09]
[1755663540159,135.66,181.14,181.08,3.09]
[1755663540460,135.66,181.14,181.1,2.43923111]
[1755663540660,135.66,181.14,181.12,3.09]
[1755663541659,135.66,181.14,181.1,2.43923111]
[1755663541852,138.79,181.14,181.1,5.52923111]
[1755663542057,138.79,181.14,181.11,3.09]
[1755663542452,135.66,181.14,181.11,3.09]
[1755663542658,3.13,181.13,181.11,3.09]
[1755663543357,3.13,181.13,181.08,3.09]
[1755663543559,135.66,181.14,181.08,3.09]
[1755663543856,3.13,181.11,181.08,3.09]
[1755663544156,135.66,181.14,181.07,3.09]
[1755663545358,3.13,181.13,181.07,3.09]
[1755663548261,3.13,181.13,181.05,2.43923111]
[1755663548463,3.13,181.13,181.04,3.09]
[1755663550360,3.13,181.12,181.01,9.22576389]
[1755663550557,3.13,181.09,181.01,3.09]
[1755663550767,3.13,181.07,181.01,3.09]
[1755663554263,3.13,181.07,180.97,74.14295664]
[1755663554264,3.13,181.07,180.98,3.09]
[1755663556561,5.56923111,181.07,180.98,3.09]
[1755663556767,3.13,181.06,180.98,3.09]
[1755663557265,3.13,181.06,180.94,3.09]
[1755663560066,3.13,181.06,180.94,8.6169]
[1755663560276,3.13,181.06,180.95,3.09]
[1755663560770,3.13,181.06,180.96,5.5263]
[1755663560968,3.13,181.06,180.97,3.09]
[1755663563171,135.5,181.05,180.97,3.09]
[1755663563968,3.13,181.04,180.97,3.09]
[1755663564574,3.13,181.04,180.98,3.09]
[1755663564777,135.5,181.05,180.98,3.09]
[1755663565666,138.63,181.05,180.99,3.09]
[1755663568871,135.5,181.05,180.99,3.09]
[1755663569071,135.5,181.05,180.99,5.52923111]
[1755663569265,135.5,181.05,180.99,2.43923111]
[1755663569471,6.15524967,181.18,181.03,2.91]
[1755663569472,3.06,181.11,181.03,2.91]
[1755663569780,3.06,181.11,181.04,5.5239]
[1755663569970,3.06,181.11,181.05,2.91]
[1755663571777,3.06,181.11,181.02,5.34923111]
[1755663572677,3.06,181.11,181.03,2.91]
[1755663575974,3.06,181.11,181.03,8.4341]
[1755663576282,3.06,181.11,181.04,2.91]
[1755663576476,3.06,181.11,181.06,2.91]
[1755663576678,138.56,181.12,181.08,2.91]
[1755663576879,138.56,181.12,181.05,7.96283111]
[1755663576880,135.5,181.12,181.06,2.91]
[1755663577382,135.5,181.12,181.06,8.4332]
[1755663577579,135.5,181.12,181.06,2.91]
[1755663578380,3.06,181.11,181.05,2.43923111]
[1755663578576,3.06,181.11,181.04,2.91]
[1755663582585,3.06,181.11,181.04,8.4337]
[1755663583083,3.06,181.11,181.04,2.91]
[1755663584586,3.06,181.11,181.05,2.91]
[1755663587887,3.06,181.11,181.05,5.5235]
[1755663588083,3.06,181.11,181.07,2.91]
[1755663588283,3.06,181.11,181.08,2.91]
[1755663589983,135.44,181.12,181.09,2.91]
[1755663590183,138.5,181.12,181.09,2.91]
[1755663592090,3.06,181.11,181.09,2.91]
[1755663592292,3.06,181.11,181.07,2.91]
[1755663592489,3.06,181.11,181.06,2.91]
[1755663592686,3.06,181.11,181.07,2.91]
[1755663592880,135.44,181.12,181.07,2.91]
[1755663593287,3.06,181.1,181.07,2.91]
[1755663594988,3.06,181.11,181.07,2.91]
[1755663595190,135.44,181.12,181.07,2.91]
[1755663595386,3.06,181.1,181.07,2.91]
[1755663596891,135.42,181.13,181.06,2.91]
[1755663597089,3.06,181.12,181.06,2.91]
[1755663597986,135.42,181.13,181.06,2.91]
[1755663599790,3.06,181.14,181.06,2.91]
[1755663599991,138.46,181.14,181.06,2.91]
[1755663601488,2.95,181.13,181.06,2.91]
[1755663603182,2.95,181.13,181.03,3.01]
[1755663606592,2.95,181.12,181.03,3.01]
[1755663606787,2.95,181.12,180.98,6.13576389]
[1755663606993,2.95,181.09,180.97,3.01]
[1755663607292,2.95,181.09,180.98,3.01]
[1755663614597,2.95,181.06,180.98,3.01]
[1755663623495,2.43923111,181.04,180.95,3.01]
[1755663623702,2.95,181.03,180.95,3.01]
[1755663629413,2.85,181.06,180.95,3.01]
[1755663630017,2.85,181.06,180.97,2.94]
[1755663630720,2.85,181.06,180.98,2.94]
[1755663637125,138.21,181.06,180.98,2.94]
[1755663637323,138.21,181.06,180.99,2.94]
[1755663639426,2.85,181.05,180.99,2.94]
[1755663647530,2.85,181.05,180.95,6.13576389]
[1755663647734,2.85,181.05,180.94,7.96613111]
[1755663647735,2.85,181.05,180.96,2.94]
[1755663659246,2.85,181.05,180.96,5.5262]
[1755663659446,2.85,181.05,180.97,2.85]
[1755663659645,135.36,181.06,180.97,2.85]
[1755663659842,135.36,181.06,180.97,5.5259]
[1755663660043,135.36,181.06,180.98,2.85]
[1755663660243,135.28,181.05,180.98,2.85]
[1755663660841,135.28,181.05,180.97,8.574995]
[1755663660842,135.28,181.05,180.99,2.85]
[1755663661039,135.28,181.05,181.01,2.85]
[1755663661948,135.28,181.05,181.0,2.43923111]
[1755663662148,135.28,181.05,181.02,2.85]
[1755663662348,135.28,181.05,180.99,2.43923111]
[1755663662546,135.28,181.05,181.0,2.85]
[1755663662748,135.28,181.05,180.98,2.85]
[1755663662950,135.28,181.08,181.03,2.85]
[1755663663153,138.16,181.08,181.04,2.85]
[1755663663353,2.88,181.07,181.04,2.85]
[1755663664049,2.88,181.07,181.01,2.85]
[1755663667155,2.88,181.07,180.98,2.85]
[1755663667854,2.88,181.05,180.95,2.85]
[1755663673844,2.43923111,181.03,180.95,2.85]
[1755663674045,2.88,181.02,180.92,2.85]
[1755663674259,2.88,181.0,180.92,2.85]
[1755663674654,2.43923111,181.0,180.92,2.85]
[1755663674954,2.88,180.99,180.92,2.85]
[1755663679558,2.88,180.99,180.88,71.85365518]
[1755663679858,2.88,180.99,180.89,2.85]
[1755663680356,2.88,180.97,180.89,2.85]
[1755663683462,2.88,181.0,180.89,2.85]
[1755663684054,135.6,180.99,180.89,2.85]
[1755663684454,2.88,180.98,180.89,2.85]
[1755663687058,135.6,180.97,180.9,2.43923111]
[1755663687367,2.88,181.01,180.91,2.85]
[1755663687556,2.88,181.01,180.93,2.43923111]
[1755663687760,135.6,181.0,180.94,2.85]
[1755663691361,138.73,181.0,180.94,2.85]
[1755663692262,3.13,180.99,180.91,3.03]
[1755663693061,135.5,180.98,180.91,3.03]
[1755663693970,135.5,180.98,180.93,2.43923111]
[1755663694174,135.5,180.98,180.94,3.03]
[1755663695570,135.5,180.98,180.93,2.43923111]
[1755663695769,135.5,180.98,180.96,3.03]
[1755663695967,135.5,180.98,180.93,2.43923111]
[1755663696169,135.5,180.98,180.96,3.03]
[1755663696467,135.5,180.98,180.97,3.03]
[1755663697070,135.5,180.98,180.93,7.96633111]
[1755663697268,135.5,180.98,180.95,3.03]
[1755663697469,3.13,180.97,180.93,5.46923111]
[1755663698169,3.13,180.97,180.94,3.03]
[1755663699960,135.5,180.98,180.93,2.43923111]
[1755663700165,138.63,180.98,180.95,3.03]
[1755663701069,138.63,180.98,180.93,2.43923111]
[1755663701070,135.5,180.98,180.93,2.43923111]
[1755663701271,374.39,181.03,180.94,3.03]
[1755663701473,374.39,181.03,180.95,3.03]
[1755663701474,135.34,180.99,180.95,3.03]
[1755663701775,135.34,180.99,180.97,3.03]
[1755663702275,135.38,180.99,180.97,3.03]
[1755663702472,135.38,180.99,180.94,3.03]
[1755663702674,135.38,180.99,180.93,7.96633111]
[1755663702873,3.13,180.99,180.96,3.03]
[1755663703078,138.49,180.99,180.96,3.03]
[1755663703578,138.49,180.99,180.93,7.96633111]
[1755663703773,138.47,180.99,180.95,3.03]
[1755663703975,3.13,180.99,180.95,3.03]
[1755663704179,138.45,180.99,180.95,3.03]
[1755663704974,138.45,180.99,180.96,3.03]
[1755663705477,3.13,181.02,180.97,3.03]
[1755663705674,3.13,181.0,180.97,3.03]
[1755663706576,3.13,180.99,180.93,7.96633111]
[1755663706780,3.13,180.99,180.96,3.03]
[1755663714095,3.13,180.99,180.93,14.102095]
[1755663714286,3.13,180.99,180.94,3.03]
[1755663714486,138.45,181.01,180.94,3.03]
[1755663718088,3.13,181.0,180.94,3.03]
[1755663721082,3.13,181.0,180.94,8.5567]
[1755663721483,3.13,181.0,180.94,14.69246389]
[1755663721689,3.13,181.0,180.94,8.5567]
[1755663721992,135.32,181.01,180.94,5.5267]
[1755663722289,135.32,181.01,180.96,2.43923111]
[1755663722791,135.32,181.01,180.99,2.86]
[1755663722991,138.29,181.01,180.99,2.86]
[1755663723587,138.29,181.01,180.97,2.86]
[1755663723788,138.29,181.01,180.98,2.86]
[1755663724389,135.32,181.01,180.98,2.86]